bitfinex-derivatives/quotes_ETHF0:USTF0_20240925
["timestamp","ask_amount","ask_price","bid_price","bid_amount"]
[1727280178230,3.59216,2601.6,2601.3,0.3844]
[1727280178429,3.2078,2601.6,2601.3,0.3844]
[1727280178630,3.2078,2601.6,2601.2,0.89148744]
[1727280178830,3.2078,2601.6,2601.3,0.3844]
[1727280179037,3.59216,2601.6,2601.3,0.3844]
[1727280179544,3.59216,2601.6,2601.3,0.38439]
[1727280179545,3.2078,2601.6,2601.3,0.38439]
[1727280179840,3.59216,2601.6,2601.3,0.38439]
[1727280180139,7.73704,2602.4,2602.1,0.38428]
[1727280180355,7.73705,2602.4,2602.1,0.38428]
[1727280180636,0.38426,2602.3,2602.0,3.70429]
[1727280180831,3.2078,2602.4,2602.3,0.38425]
[1727280181028,3.2078,2602.4,2602.0,3.32]
[1727280181029,0.7418,2602.7,2602.0,7.48853]
[1727280181242,1.12599,2602.7,2602.4,0.38423]
[1727280181535,1.126,2602.7,2602.4,0.38423]
[1727280181737,1.126,2602.7,2602.0,7.48853]
[1727280181738,0.7418,2602.7,2602.1,0.96069]
[1727280181940,0.7418,2602.7,2602.5,0.38422]
[1727280182336,0.7418,2602.7,2602.1,0.96069]
[1727280182337,0.7418,2602.7,2602.2,0.96067]
[1727280182550,0.7418,2602.7,2602.1,0.96068]
[1727280182741,0.7418,2602.7,2602.5,0.38421]
[1727280183436,0.7418,2602.7,2602.6,0.38421]
[1727280183739,0.7418,2602.7,2602.4,0.38423]
[1727280183936,1.126,2602.7,2602.4,0.38423]
[1727280184333,0.38425,2602.4,2602.1,0.38427]
[1727280184841,0.38427,2602.2,2601.9,0.3843]
[1727280185234,0.3843,2602.0,2601.8,1.15392]
[1727280185434,0.96073,2602.1,2601.8,0.7696]
[1727280185636,0.38435,2601.7,2601.4,3.59218]
[1727280185839,0.38433,2601.8,2601.5,0.38436]
[1727280186148,3.9792,2602.0,2601.7,0.38434]
[1727280186149,0.38432,2601.9,2601.7,0.38434]
[1727280186337,0.3772,2602.0,2601.4,6.5278]
[1727280186542,0.3772,2602.0,2601.9,0.38431]
[1727280186846,0.38428,2602.2,2601.6,0.96089]
[1727280187149,0.38427,2602.2,2601.9,0.3843]
[1727280187645,0.38428,2602.2,2601.9,0.3843]
[1727280187943,7.3528,2602.3,2601.8,0.38432]
[1727280187944,0.38429,2602.1,2601.8,0.38432]
[1727280188345,0.38428,2602.2,2601.9,0.3843]
[1727280188548,3.59206,2602.3,2602.0,0.38429]
[1727280188741,3.59206,2602.3,2601.9,0.3843]
[1727280188742,0.38427,2602.2,2601.9,0.3843]
[1727280188944,3.2078,2602.3,2601.7,0.4086]
[1727280189147,0.38429,2602.1,2601.7,0.4086]
[1727280189345,3.2078,2602.3,2601.4,6.5278]
[1727280189545,0.38433,2601.8,2601.6,0.38435]
[1727280189846,3.2078,2602.0,2601.5,0.38436]
[1727280189847,0.38435,2601.7,2601.5,0.38436]
[1727280190044,0.75402,2601.9,2601.6,0.38434]
[1727280190551,0.38433,2601.8,2601.6,0.38434]
[1727280190843,0.3697,2601.9,2601.7,0.38433]
[1727280191245,3.59211,2602.0,2601.8,0.38431]
[1727280191246,3.2078,2602.0,2601.8,0.38431]
[1727280191447,0.38428,2602.1,2601.9,0.38431]
[1727280191642,0.38428,2602.2,2601.9,0.38431]
[1727280191833,0.38428,2602.2,2601.6,3.2078]
[1727280191834,3.2078,2602.3,2602.1,0.38428]
[1727280192041,3.59206,2602.3,2602.1,0.38428]
[1727280192242,3.2078,2602.3,2602.2,0.38427]
[1727280192753,3.2078,2602.3,2602.2,0.78897]
[1727280193453,3.2078,2602.3,2602.2,1.74964]
[1727280193643,0.9604,2603.0,2602.7,0.38419]
[1727280193644,3.2078,2602.8,2602.7,0.38419]
[1727280194643,3.576,2603.1,2602.6,4.28052]
[1727280194848,3.576,2603.1,2603.0,0.38415]
[1727280195048,3.2078,2603.1,2603.0,0.38415]
[1727280195359,3.2078,2603.1,2602.9,0.38415]
[1727280196039,3.2078,2603.1,2603.0,0.38415]
[1727280196346,3.2078,2603.1,2602.6,3.32]
[1727280196650,3.2078,2603.1,2602.9,0.38415]
[1727280196852,3.2078,2603.1,2603.0,0.38415]
[1727280197350,3.2078,2603.1,2602.6,3.32]
[1727280197741,3.2078,2603.1,2602.9,0.38415]
[1727280198149,3.2078,2603.1,2603.0,0.38415]
[1727280198349,3.59194,2603.1,2602.8,0.38416]
[1727280198646,3.59194,2603.1,2602.8,0.38417]
[1727280198850,0.38418,2602.8,2602.5,0.77691]
[1727280199052,0.3842,2602.7,2602.4,0.38422]
[1727280199248,0.3842,2602.7,2602.2,0.4047]
[1727280199446,0.3842,2602.7,2602.4,0.38422]
[1727280200052,0.3842,2602.7,2602.2,0.4047]
[1727280200053,0.96049,2602.7,2602.2,0.78896]
[1727280200247,3.2078,2602.5,2601.9,3.64748586]
[1727280200550,0.38429,2602.1,2601.9,0.3843]
[1727280200750,0.38428,2602.2,2602.0,0.38429]
[1727280201147,0.4028,2602.3,2602.1,0.38428]
[1727280201148,0.78706,2602.3,2602.1,0.38428]
[1727280202145,0.78706,2602.3,2602.1,0.38427]
[1727280202452,3.2078,2602.5,2602.0,7.48854]
[1727280202644,3.2078,2602.5,2602.4,0.38424]
[1727280202848,3.59203,2602.5,2602.3,0.38425]
[1727280203442,0.38424,2602.4,2602.0,3.2078]
[1727280203646,0.38426,2602.3,2602.1,1.37582871]
[1727280203849,3.2078,2602.5,2602.0,0.44053736]
[1727280204051,3.2078,2602.5,2602.2,0.38426]
[1727280204052,0.38425,2602.4,2602.2,0.38426]
[1727280204244,3.59203,2602.5,2602.3,0.38424]
[1727280205459,0.38424,2602.4,2602.3,0.38424]
[1727280205852,3.59203,2602.5,2602.4,0.38424]
[1727280206155,0.38423,2602.5,2602.4,0.38424]
[1727280206452,0.38423,2602.5,2602.0,0.96073]
[1727280206453,0.38424,2602.4,2602.3,0.38424]
[1727280206645,0.38424,2602.5,2602.3,0.38424]
[1727280207247,0.38424,2602.4,2602.3,0.38424]
[1727280207447,0.38424,2602.4,2602.3,0.89270188]
[1727280207747,0.3829,2602.6,2602.3,0.89270188]
[1727280207951,0.38424,2602.4,2602.3,0.38424]
[1727280208251,0.38424,2602.4,2602.3,1.43506256]
[1727280208560,0.38424,2602.4,2602.3,0.5084616]
[1727280209059,1.34484,2602.4,2602.3,0.5084616]
[1727280209461,1.71284,2602.4,2602.3,0.5084616]
[1727280210155,1.71284,2602.4,2602.3,1.43601994]
[1727280211055,1.71284,2602.4,2602.3,0.9504606]
[1727280211250,0.38427,2602.2,2602.1,0.38427]
[1727280211454,0.38426,2602.3,2602.2,0.38426]
[1727280211650,0.75224,2602.4,2601.8,1.34091]
[1727280211651,0.368,2602.4,2602.3,0.38425]
[1727280211849,3.2078,2602.5,2602.4,0.38424]
[1727280212359,0.96046,2602.8,2602.7,0.38419]
[1727280212360,3.59199,2602.8,2602.7,0.38419]
[1727280212660,3.2078,2602.8,2602.7,0.38419]
[1727280213867,3.2078,2602.8,2602.7,5.18708]
[1727280214162,3.59194,2603.1,2602.9,0.38416]
[1727280214353,3.2078,2603.1,2603.0,0.38415]
[1727280214954,3.2078,2603.1,2602.5,4.21205078]
[1727280215155,0.9604,2603.0,2602.5,4.21205078]
[1727280215359,3.2078,2603.1,2602.6,0.3842]
[1727280215360,0.38418,2602.8,2602.6,0.3842]
[1727280215562,0.38419,2602.7,2602.3,2.75278078]
[1727280215854,3.2078,2602.8,2602.5,0.38422]
[1727280216057,0.38419,2602.7,2602.5,0.38422]
[1727280216453,3.59198,2602.8,2602.3,1.74852]
[1727280216660,3.59198,2602.8,2602.4,0.9606]
[1727280216857,3.59199,2602.8,2602.6,0.38419]
[1727280217057,3.59199,2602.8,2602.7,0.38419]
[1727280217359,3.59199,2602.8,2602.6,0.3842]
[1727280217555,0.38419,2602.7,2602.6,0.3842]
[1727280218254,0.38419,2602.7,2602.5,0.38421]
[1727280218452,0.3842,2602.7,2602.3,1.74853]
[1727280218658,0.38421,2602.6,2602.3,0.7879]
[1727280218960,3.2078,2602.8,2602.1,1.00425078]
[1727280218961,6.5278,2602.8,2602.1,1.00425078]
[1727280219154,0.96076,2602.0,2601.6,1.74105078]
[1727280219357,0.38434,2601.7,2601.4,1.00425078]
[1727280219556,3.59216,2601.6,2601.3,1.38864078]
[1727280219762,3.59216,2601.6,2601.3,0.38439]
[1727280219965,3.2078,2601.6,2601.4,0.38438]
[1727280220166,3.2078,2601.6,2601.1,4.21205078]
[1727280220359,0.38437,2601.5,2601.2,0.38441]
[1727280220564,0.38439,2601.4,2601.2,0.38441]
[1727280220760,3.2078,2601.6,2601.0,0.38444]
[1727280220761,0.3844,2601.3,2601.0,0.38444]
[1727280220964,0.38439,2601.4,2601.1,0.38443]
[1727280221165,0.3844,2601.3,2601.1,0.38443]
[1727280221463,0.38439,2601.4,2601.1,0.38443]
[1727280221656,0.38439,2601.4,2600.9,3.2078]
[1727280221657,0.3844,2601.4,2601.0,0.38444]
[1727280221860,3.2078,2601.6,2601.0,0.38444]
[1727280221861,0.3844,2601.3,2601.0,0.38444]
[1727280222164,0.38439,2601.4,2601.1,0.38443]
[1727280222365,0.38438,2601.5,2601.1,0.38443]
[1727280222563,0.38439,2601.4,2601.1,0.38443]
[1727280222761,3.2078,2601.6,2601.1,0.38443]
[1727280222965,0.3844,2601.4,2601.0,0.38444]
[1727280223270,3.2078,2601.6,2600.9,3.2078]
[1727280223271,3.2078,2601.6,2601.1,0.38442]
[1727280223572,3.2078,2601.6,2600.9,3.2078]
[1727280223773,0.38439,2601.4,2601.0,0.38443]
[1727280224157,3.2078,2601.6,2600.9,0.38445]
[1727280224362,4.16872,2601.6,2600.9,0.38445]
[1727280224557,0.38439,2601.4,2601.0,0.38444]
[1727280224758,0.38439,2601.4,2601.1,0.38443]
[1727280224964,0.3844,2601.3,2601.0,0.38444]
[1727280225467,0.3844,2601.3,2600.8,0.3671]
[1727280225770,0.3844,2601.3,2601.0,0.38444]
[1727280226274,0.38439,2601.4,2601.1,0.38443]
[1727280226469,0.38442,2601.2,2600.9,0.38445]
[1727280226772,0.38449,2600.7,2600.5,0.38451]
[1727280226970,4.16909,2600.6,2600.1,0.7791]
[1727280227271,0.38453,2600.4,2600.2,0.38455]
[1727280227474,3.2078,2600.6,2600.2,0.38455]
[1727280227773,3.2078,2600.6,2600.1,0.7791]
[1727280227774,3.2078,2600.6,2600.4,0.38453]
[1727280227966,0.38453,2600.5,2600.1,0.7791]
[1727280228475,0.38453,2600.5,2600.3,0.38454]
[1727280228870,3.2078,2600.6,2600.3,0.38454]
[1727280229170,0.38452,2600.5,2600.3,0.38453]
[1727280229479,0.38452,2600.5,2600.4,0.38453]
[1727280229675,0.38452,2600.5,2600.3,0.38454]
[1727280229870,0.38452,2600.5,2600.1,0.7791]
[1727280229871,0.38452,2600.5,2600.4,0.38453]
[1727280230178,0.38454,2600.4,2600.2,0.38455]
[1727280230473,3.2078,2600.3,2600.2,0.38455]
[1727280234886,3.2078,2600.3,2600.1,1.16367]
[1727280235093,3.59235,2600.3,2600.1,1.16367]
[1727280235391,0.3846,2600.0,2599.6,3.2078]
[1727280235782,1.73391,2600.2,2599.6,3.2078]
[1727280235783,0.38461,2599.9,2599.6,3.2078]
[1727280235988,0.38461,2599.9,2599.7,0.38463]
[1727280236183,4.1693,2600.0,2599.4,0.7429]
[1727280236389,4.16941,2599.7,2599.0,3.2078]
[1727280236594,0.38469,2599.4,2599.2,0.38471]
[1727280236794,3.2078,2599.4,2598.8,0.7429]
[1727280236998,3.2078,2598.9,2598.2,0.96213]
[1727280237297,3.2078,2598.9,2598.1,4.53618]
[1727280237498,0.3848,2598.6,2598.4,0.38482]
[1727280237690,0.3848,2598.6,2597.7,4.17011]
[1727280237691,3.2078,2598.6,2597.7,4.17011]
[1727280237887,3.2078,2598.6,2597.8,0.9623]
[1727280238097,0.38482,2598.5,2598.2,0.38485]
[1727280238599,3.2078,2598.6,2597.9,0.96226]
[1727280238894,0.3952,2598.8,2598.6,0.38479]
[1727280239096,0.3952,2598.8,2598.0,3.2078]
[1727280239397,0.3952,2598.8,2598.2,0.38485]
[1727280239398,0.3848,2598.6,2598.2,0.38485]
[1727280239601,0.38479,2598.7,2598.3,0.38484]
[1727280239793,0.38479,2598.7,2597.8,4.28228]
[1727280239794,0.77998,2598.8,2598.0,0.38489]
[1727280240096,0.77997,2598.8,2598.4,0.38482]
[1727280240301,0.77997,2598.8,2598.5,0.38481]
[1727280240487,0.3952,2598.8,2598.5,0.38481]
[1727280240890,0.3952,2598.8,2598.1,1.33827]
[1727280241087,3.6048,2599.2,2598.6,0.38479]
[1727280241299,3.6048,2599.2,2598.7,0.38478]
[1727280241502,3.6048,2599.2,2598.8,0.38476]
[1727280241795,3.6048,2599.2,2599.0,0.38474]
[1727280242106,3.6048,2599.2,2598.5,0.96202]
[1727280242107,3.2078,2599.2,2599.1,0.38472]
[1727280242301,0.38467,2599.5,2598.7,0.96195]
[1727280242302,3.2078,2599.5,2598.7,0.96195]
[1727280242896,3.2078,2599.5,2598.6,6.5278]
[1727280242897,3.2078,2599.5,2599.0,0.38473]
[1727280243094,0.38468,2599.4,2599.0,0.38473]
[1727280243295,3.59247,2599.5,2599.0,0.38473]
[1727280243607,3.2078,2599.2,2598.5,0.96203]
[1727280243798,3.2078,2599.2,2598.4,0.3846]
[1727280243799,3.2078,2599.2,2598.4,4.55446]
[1727280244099,3.2078,2599.2,2599.0,0.38473]
[1727280244398,3.2078,2599.2,2598.5,0.96204]
[1727280244591,3.2078,2599.2,2598.8,0.38476]
[1727280244993,3.2078,2599.2,2598.4,3.5924]
[1727280245289,0.38472,2599.1,2598.7,0.38478]
[1727280245492,0.38474,2599.0,2598.6,0.38479]
[1727280245691,3.59257,2598.8,2598.4,0.76942]
[1727280245887,3.59257,2598.8,2598.1,3.9607]
[1727280245888,4.16975,2598.8,2598.1,3.9607]
[1727280246091,3.2078,2598.5,2598.2,0.38485]
[1727280246303,3.59261,2598.5,2598.2,0.38485]
[1727280246498,3.2078,2598.5,2598.2,0.38485]
[1727280247297,3.2078,2598.5,2598.2,0.38484]
[1727280247696,0.3875,2598.9,2598.3,3.32]
[1727280248001,0.3875,2598.9,2598.2,0.96215]
[1727280248002,0.38477,2598.8,2598.4,0.38483]
[1727280248296,3.5953,2598.9,2598.2,0.4044]
[1727280248297,0.38481,2598.6,2598.2,0.38485]
[1727280248696,3.59261,2598.6,2598.3,0.38484]
[1727280248896,3.2078,2598.6,2598.4,0.38483]
[1727280249106,3.5953,2598.9,2598.3,3.32]
[1727280249493,3.5953,2598.9,2598.2,0.4044]
[1727280249494,3.98006,2598.9,2598.2,0.4044]
[1727280249695,3.5953,2598.9,2598.4,0.38482]
[1727280249895,0.38478,2598.7,2598.4,0.38482]
[1727280250091,0.38477,2598.8,2598.4,0.38482]
[1727280250496,0.38477,2598.8,2598.5,0.38481]
[1727280250793,0.38477,2598.8,2598.4,0.38482]
[1727280251499,0.38479,2598.7,2598.4,0.38483]
[1727280251706,0.38478,2598.8,2598.4,0.38483]
[1727280252003,3.5953,2598.9,2598.1,0.76097]
[1727280252004,0.38483,2598.4,2598.1,0.76097]
[1727280252303,3.59262,2598.5,2598.2,0.38485]
[1727280252805,3.2078,2598.5,2598.0,0.4056]
[1727280253003,0.38485,2598.3,2598.0,0.79048]
[1727280253594,3.2078,2598.5,2598.1,0.38487]
[1727280253897,3.59261,2598.5,2597.9,0.96226]
[1727280254092,3.59261,2598.5,2598.1,3.32]
[1727280254093,3.2078,2598.5,2598.1,3.32]
[1727280254295,0.4055,2598.6,2598.4,0.38483]
[1727280254708,0.4055,2598.6,2598.5,0.38481]
[1727280254903,0.4055,2598.6,2598.4,0.38481]
[1727280255209,3.6133,2598.6,2598.5,0.38481]
[1727280255399,3.6133,2598.6,2598.4,0.38482]
[1727280256506,3.6133,2598.6,2598.5,0.38481]
[1727280256804,3.2078,2598.6,2598.5,0.38481]
[1727280257003,0.77226,2598.9,2598.8,0.38477]
[1727280257004,0.3875,2598.9,2598.8,0.38477]
[1727280257212,4.2355,2598.9,2598.8,0.38477]
[1727280257706,3.5998,2599.0,2598.7,3.32]
[1727280257707,3.2078,2599.0,2598.7,3.32]
[1727280257914,3.2078,2599.3,2599.1,0.38472]
[1727280258304,3.2078,2599.3,2599.2,0.38471]
[1727280258505,7.055,2599.3,2599.2,0.38471]
[1727280258808,7.055,2599.3,2598.6,0.3901]
[1727280259015,4.16974,2598.8,2598.1,3.9569]
[1727280259202,0.38483,2598.4,2598.2,0.38486]
[1727280259506,3.2078,2598.5,2598.3,0.38483]
[1727280259708,3.59262,2598.5,2598.3,0.38483]
[1727280259915,3.59262,2598.5,2598.0,0.4034]
[1727280259916,3.59262,2598.5,2598.2,0.38485]
[1727280260212,3.59262,2598.5,2598.2,0.38484]
[1727280260710,3.2078,2598.5,2598.1,0.38486]
[1727280260901,0.38483,2598.4,2598.0,0.38488]
[1727280261100,0.38484,2598.4,2598.1,0.38486]
[1727280261300,0.38484,2598.4,2597.7,0.4034]
[1727280261301,0.96208,2598.4,2598.0,0.38488]
[1727280261713,0.38484,2598.3,2598.0,0.38488]
[1727280261904,0.38486,2598.2,2598.0,0.38488]
[1727280262106,0.96208,2598.4,2598.0,0.38489]
[1727280262305,3.6079,2598.1,2597.8,0.38491]
[1727280262604,0.78498,2598.1,2597.5,0.96241]
[1727280262809,0.4001,2598.1,2598.0,0.38489]
[1727280263008,0.78498,2598.1,2597.9,0.3849]
[1727280263212,0.78498,2598.1,2597.5,0.96241]
[1727280263413,0.78498,2598.1,2597.9,0.3849]
[1727280263711,0.4001,2598.1,2597.6,0.38495]
[1727280263917,3.2078,2598.4,2598.0,0.38489]
[1727280264107,0.38486,2598.2,2598.0,0.38489]
[1727280264307,0.38485,2598.3,2598.0,0.38489]
[1727280264508,3.2078,2598.4,2597.8,0.38492]
[1727280264708,0.38485,2598.3,2597.9,0.3793]
[1727280265008,0.38485,2598.3,2598.1,0.38487]
[1727280265312,3.2078,2598.4,2597.9,0.3793]
[1727280265313,4.16989,2598.4,2597.9,0.3793]
[1727280265510,0.38486,2598.2,2598.0,0.38488]
[1727280265708,0.38488,2598.1,2597.9,0.7642]
[1727280265908,0.38487,2598.2,2597.9,0.7642]
[1727280266104,0.38487,2598.1,2597.9,0.7642]
[1727280266306,0.38487,2598.1,2597.4,3.2078]
[1727280266307,0.3849,2598.0,2597.4,4.17024]
[1727280266509,3.2078,2598.4,2597.5,1.34169]
[1727280266510,3.59268,2598.1,2597.5,1.34169]
[1727280266707,3.59268,2598.1,2597.9,0.3849]
[1727280267213,3.2078,2598.1,2597.9,0.3849]
[1727280267406,3.2078,2598.1,2598.0,0.38489]
[1727280267611,3.2078,2598.1,2597.6,0.96236]
[1727280267910,3.2078,2598.1,2598.0,0.38489]
[1727280270911,3.2078,2598.1,2598.0,4.23369]
[1727280271114,3.609,2598.9,2598.1,1.92437]
[1727280271311,3.2078,2598.9,2598.8,0.38477]
[1727280271513,3.2078,2598.9,2598.3,0.96211]
[1727280271707,0.38479,2598.7,2598.5,0.3848]
[1727280271907,0.38479,2598.7,2598.2,1.34965]
[1727280271908,3.2078,2598.6,2598.2,0.3875]
[1727280272112,3.5908,2598.6,2598.2,0.3875]
[1727280272415,3.5908,2598.6,2598.3,0.38483]
[1727280272416,0.38482,2598.5,2598.3,0.38483]
[1727280272622,0.38483,2598.4,2598.2,0.77235]
[1727280272816,2.7,2598.5,2598.2,0.3875]
[1727280273007,0.38483,2598.4,2598.2,0.77235]
[1727280273513,3.08482,2598.5,2598.3,0.38484]
[1727280273708,0.38483,2598.4,2598.3,0.38484]
[1727280274109,4.55281,2598.6,2598.2,0.3875]
[1727280274110,3.2078,2598.6,2598.2,0.3875]
[1727280274320,0.38482,2598.5,2598.3,0.38483]
[1727280274521,0.38483,2598.4,2598.2,0.3875]
[1727280274823,6.29265,2598.3,2598.1,0.38487]
[1727280275013,3.2078,2598.3,2598.2,0.38486]
[1727280275218,0.38481,2598.6,2598.4,0.38482]
[1727280275415,0.3848,2598.6,2598.4,0.38482]
[1727280275612,3.59258,2598.7,2598.2,0.96215]
[1727280275916,3.2078,2598.7,2598.2,0.96215]
[1727280276218,3.59258,2598.7,2598.6,0.3848]
[1727280276415,3.59258,2598.7,2598.5,0.3848]
[1727280277122,0.3848,2598.6,2598.3,0.3781]
[1727280277334,0.3848,2598.6,2598.4,0.38482]
[1727280278625,0.3848,2598.6,2598.5,0.38481]
[1727280278831,3.2078,2598.7,2598.5,0.38481]
[1727280279119,0.38482,2598.5,2598.4,0.38482]
[1727280279828,0.38487,2598.2,2598.1,0.38486]
[1727280280212,0.38487,2598.1,2598.0,0.49528]
[1727280280414,0.38487,2598.1,2598.0,0.1104]
[1727280280616,6.93367,2598.1,2598.0,0.1104]
[1727280280823,5.19586,2598.1,2598.0,0.1104]
[1727280281021,5.19586,2598.1,2598.0,0.49529]
[1727280281022,6.93367,2598.1,2598.0,0.49529]
[1727280281212,3.8488,2598.1,2598.0,0.49529]
[1727280281415,3.5788,2598.3,2598.2,0.38486]
[1727280281634,3.2078,2598.3,2598.2,0.38486]
[1727280283517,0.38482,2598.5,2598.4,0.38482]
[1727280283720,0.79161,2598.6,2598.4,0.38482]
[1727280284625,0.38483,2598.4,2598.3,0.38483]
[1727280285029,0.38482,2598.5,2598.3,0.38483]
[1727280285418,0.38482,2598.5,2598.2,0.38485]
[1727280285419,0.38485,2598.3,2598.2,0.38485]
[1727280285719,3.2078,2598.4,2598.3,0.38484]
[1727280285919,3.59263,2598.4,2598.3,0.38484]
[1727280286222,0.38485,2598.3,2598.2,0.38485]
[1727280286413,3.2078,2598.4,2598.2,0.38485]
[1727280286618,3.59263,2598.4,2598.3,0.38484]
[1727280287525,0.38486,2598.2,2598.1,0.38486]
[1727280288116,3.59263,2598.4,2598.3,0.38484]
[1727280288731,3.2078,2598.4,2598.3,0.38484]
[1727280289723,0.38483,2598.4,2598.3,0.38484]
[1727280290119,3.59263,2598.4,2598.3,0.38484]
[1727280290320,3.59263,2598.4,2598.2,0.3873]
[1727280290625,3.2078,2598.4,2598.2,0.3873]
[1727280290829,3.2078,2598.4,2598.3,0.38484]
[1727280292632,3.59264,2598.4,2598.3,0.38484]
[1727280292822,8.01868,2598.4,2598.1,1.00425078]
[1727280293021,0.38486,2598.2,2598.1,0.38486]
[1727280293629,0.38487,2598.1,2598.0,1.77643078]
[1727280293825,0.96212,2598.3,2598.0,1.77643078]
[1727280293826,0.38487,2598.2,2598.1,0.38486]
[1727280295525,0.98769742,2598.6,2598.3,1.34695]
[1727280295831,0.3665,2599.0,2598.5,5.16990976]
[1727280295832,3.2078,2599.0,2598.5,5.16990976]
[1727280296125,3.2078,2599.0,2598.9,1.39259414]
[1727280296328,3.2078,2599.0,2598.9,2.35448414]
[1727280296516,3.2078,2599.0,2598.9,5.67133255]
[1727280296719,3.2078,2599.0,2598.9,1.96348841]
[1727280297024,3.2078,2599.0,2598.9,1.79411731]
[1727280297220,3.2078,2599.3,2599.2,0.38471]
[1727280297829,3.2078,2599.3,2599.2,6.93191]
[1727280298029,2.46779389,2600.1,2599.4,0.96169]
[1727280298227,3.607,2600.2,2600.1,0.38458]
[1727280298228,0.98769742,2600.2,2600.1,0.38458]
[1727280298526,3.5806,2600.5,2600.1,0.38457]
[1727280298728,3.5806,2600.5,2599.8,1.39145786]
[1727280298729,3.2078,2600.2,2599.8,1.39145786]
[1727280298930,2.7,2600.1,2599.7,1.39744786]
[1727280299229,2.7,2600.1,2599.8,0.38461]
[1727280299444,5.9078,2599.9,2599.6,0.38465]
[1727280300123,5.9078,2599.9,2599.5,0.77995]
[1727280300324,0.38464,2599.7,2599.4,1.00684786]
[1727280300524,0.3728,2599.8,2599.3,0.3906]
[1727280300720,0.3728,2599.8,2599.5,0.38466]
[1727280301327,0.3728,2599.8,2599.3,0.3906]
[1727280301531,0.3728,2599.8,2599.5,0.38465]
[1727280302228,0.3728,2599.8,2599.3,0.3906]
[1727280302535,3.5817,2600.2,2599.4,4.29171]
[1727280302731,3.2078,2599.9,2599.3,1.39744786]
[1727280302933,3.2078,2599.9,2599.7,0.38463]
[1727280303333,3.2078,2599.9,2599.3,1.90094137]
[1727280303334,0.38464,2599.7,2599.3,0.3906]
[1727280303532,3.2078,2599.6,2599.4,0.38467]
[1727280304425,3.2078,2599.6,2599.5,0.38467]
[1727280304636,3.2078,2599.6,2599.4,0.38467]
[1727280304936,3.2078,2599.6,2599.0,0.3953]
[1727280305531,3.2078,2599.6,2599.4,0.1104]
[1727280305832,3.2078,2599.6,2599.5,0.38467]
[1727280306035,0.3775,2599.8,2599.6,0.38464]
[1727280306233,0.3775,2599.8,2599.7,0.38464]
[1727280306636,0.38458,2600.1,2599.8,0.38462]
[1727280306935,0.3846,2600.0,2599.6,0.3842]
[1727280307130,3.2078,2599.9,2599.7,0.38463]
[1727280307324,3.2078,2599.9,2599.5,0.75125]
[1727280307537,3.59241,2599.9,2599.5,0.3666]
[1727280307735,3.59241,2599.9,2599.6,0.38464]
[1727280308432,3.59241,2599.9,2599.5,0.75126]
[1727280308736,0.38464,2599.7,2599.4,0.49507]
[1727280309239,0.38465,2599.7,2599.4,0.49507]
[1727280309437,0.38463,2599.8,2599.5,0.38466]
[1727280309735,3.2078,2599.6,2599.4,0.1104]
[1727280309940,0.38467,2599.5,2599.4,0.1104]
[1727280310131,0.78627,2599.5,2599.4,0.1104]
[1727280310327,0.4016,2599.5,2599.4,0.1104]
[1727280310729,0.4016,2599.5,2599.4,0.49508]
[1727280311133,0.78627,2599.5,2599.4,0.1104]
[1727280311534,1.74794,2599.5,2599.4,0.1104]
[1727280311734,5.59514,2599.5,2599.4,0.1104]
[1727280312141,4.63347,2599.5,2599.4,0.1104]
[1727280312639,3.2078,2599.6,2599.5,0.38467]
[1727280313239,3.2078,2599.6,2598.8,2.67782]
[1727280313240,0.96172,2599.4,2598.3,3.2078]
[1727280313435,3.2078,2598.4,2597.7,8.53613167]
[1727280313741,3.2078,2598.1,2597.7,8.53613167]
[1727280314039,3.2078,2597.8,2597.7,8.53613167]
[1727280314229,3.59272,2597.8,2597.7,8.53613167]
[1727280314633,7.44232,2597.8,2597.7,8.53613167]
[1727280315939,8.40462,2597.8,2597.7,8.53613167]
[1727280316334,14.40462,2597.8,2597.7,8.53613167]
[1727280316937,14.40462,2597.8,2596.7,8.29490744]
[1727280316938,3.2078,2597.5,2596.7,8.29490744]
[1727280317136,1.34774,2596.8,2596.7,8.07130744]
[1727280317445,6.5378,2596.9,2595.9,2.18685837]
[1727280317633,3.2078,2596.6,2596.4,0.38512]
[1727280317832,3.2078,2596.6,2596.3,6.87393387]
[1727280318139,3.2078,2596.6,2596.5,3.8496]
[1727280318348,2.5971,2596.6,2596.5,3.8496]
[1727280318536,4.67801856,2597.5,2596.9,0.6418]
[1727280318842,4.67801856,2597.5,2597.3,0.6418]
[1727280319237,1.47021856,2597.5,2597.4,1.02678]
[1727280319438,1.47021856,2597.5,2597.4,0.6418]
[1727280319645,1.47021856,2597.5,2597.4,6.51573387]
[1727280320051,1.47021856,2597.5,2597.4,6.90071387]
[1727280320236,1.47021856,2597.5,2597.4,6.51573387]
[1727280320744,1.85517856,2597.5,2597.4,0.6418]
[1727280320941,1.47021856,2597.5,2596.9,3.2078]
[1727280321143,3.33,2597.3,2596.6,3.2078]
[1727280321439,0.3813,2597.4,2597.2,0.6418]
[1727280321644,5.06298856,2597.5,2597.2,0.6418]
[1727280322243,3.2078,2597.5,2597.3,0.38499]
[1727280322444,3.2078,2597.5,2597.3,1.02678]
[1727280322949,3.2078,2597.5,2597.4,1.02678]
[1727280323148,0.38493,2597.8,2597.4,1.02677]
[1727280323346,3.5927,2598.0,2597.7,0.6418]
[1727280323642,0.3849,2597.9,2597.7,5.87393387]
[1727280323841,3.2078,2598.0,2597.9,0.6418]